bitfinex/quotes_ETHUSD_20220111
["timestamp","ask_amount","ask_price","bid_price","bid_amount"]
[1641871382872,7.12951687,3111.3,3110.9,0.00682108]
[1641871383068,7.12951687,3111.3,3110.7,0.00795792]
[1641871383273,7.12951687,3111.3,3110.7,0.30795792]
[1641871383469,7.12951687,3111.3,3110.7,0.00795792]
[1641871383672,7.12951687,3111.3,3110.8,0.0073895]
[1641871386924,7.12730701,3111.3,3111.0,0.00725243]
[1641871387320,7.12730701,3111.3,3111.1,0.00568423]
[1641871387825,6.74160922,3111.3,3111.1,0.00568423]
[1641871388723,6.74160922,3111.3,3111.1,1.1328542]
[1641871388922,6.74160922,3111.3,3111.2,0.461]
[1641871389125,6.74160922,3111.3,3111.2,0.76611581]
[1641871389624,6.74160922,3111.3,3111.2,1.06611581]
[1641871390675,6.74160922,3111.3,3111.2,0.76611581]
[1641871391078,6.74160922,3111.3,3111.2,1.76611581]
[1641871391575,6.74160922,3111.3,3111.2,0.76611581]
[1641871391776,6.74160922,3111.3,3111.2,1.76611581]
[1641871391981,6.74160922,3111.3,3111.2,0.77382811]
[1641871392175,6.74160922,3111.3,3111.2,1.77382811]
[1641871392378,6.74160922,3111.3,3111.2,0.77382811]
[1641871393680,6.74160922,3111.3,3111.2,3.37382811]
[1641871394125,6.74160922,3111.3,3111.2,4.37382811]
[1641871394524,6.74160922,3111.3,3111.2,1.77382811]
[1641871394923,6.74160922,3111.3,3111.2,0.77382811]
[1641871395526,6.74160922,3111.3,3111.2,0.31282811]
[1641871395926,6.74160922,3111.3,3111.2,0.01282811]
[1641871406172,9.47469725,3111.3,3111.2,0.01282811]
[1641871406572,6.74160922,3111.3,3111.2,0.01282811]
[1641871407372,9.4746971,3111.3,3111.2,0.01282811]
[1641871407972,6.74160922,3111.3,3111.2,0.01282811]
[1641871409426,9.47472538,3111.3,3111.2,0.01282811]
[1641871409823,6.74160922,3111.3,3111.2,0.01282811]
[1641871414275,6.74160922,3111.3,3111.2,3.98345881]
[1641871414474,6.74160922,3111.3,3111.2,4.98345881]
[1641871414679,6.74160922,3111.3,3111.2,5.28345881]
[1641871414876,6.74160922,3111.3,3111.2,5.74445881]
[1641871415076,0.37548538,3111.7,3111.2,5.74445881]
[1641871415376,0.37548538,3111.7,3111.3,1.00454738]
[1641871415577,0.37548538,3111.7,3111.3,1.76554738]
[1641871415777,0.37548538,3111.7,3111.4,0.00397896]
[1641871416177,0.37548538,3111.7,3111.4,0.30397896]
[1641871416622,0.37548538,3111.7,3111.5,0.00341054]
[1641871417025,0.37548538,3111.7,3111.5,0.01110013]
[1641871417226,0.37548538,3111.7,3111.5,0.00768959]
[1641871417424,0.37548538,3111.7,3111.6,0.00284211]
[1641871418525,6.15827724,3111.7,3111.6,0.00284211]
[1641871419225,3.42548538,3111.7,3111.6,0.00284211]
[1641871419424,3.05,3111.7,3111.6,0.00284211]
[1641871419627,5.78279186,3111.7,3111.6,0.00284211]
[1641871422088,5.78279186,3111.7,3111.6,0.01052414]
[1641871429279,9.08235449,3111.7,3111.6,0.01052414]
[1641871430688,0.00757586,3111.6,3110.3,6.09]
[1641871430884,0.08792586,3111.6,3110.3,6.09]
[1641871431085,1.08792586,3111.6,3110.4,0.00682108]
[1641871431740,0.3,3111.5,3110.4,0.00682108]
[1641871431931,1.25562841,3110.8,3110.4,0.00682108]
[1641871433130,1.25562841,3110.8,3110.0,0.00909478]
[1641871434733,2.73374877,3110.7,3110.0,0.00909478]
[1641871434936,0.01158476,3110.6,3110.0,0.00909478]
[1641871435178,2.73374877,3110.7,3110.0,0.00909478]
[1641871435378,1.25562841,3110.8,3110.0,0.00909478]
[1641871436678,4.05796,3111.2,3110.0,4.25410181]
[1641871436876,3.9776,3111.2,3110.0,4.25410181]
[1641871437077,3.9776,3111.2,3110.1,1.46952636]
[1641871437279,2.73361934,3111.1,3110.2,3.98362536]
[1641871437477,2.73361934,3111.1,3110.3,0.461]
[1641871437678,1.45104733,3111.0,3110.3,1.46838951]
[1641871437976,1.45104733,3111.0,3110.3,0.76838951]
[1641871439924,3.9776,3111.2,3110.3,0.76838951]
[1641871440323,2.73356406,3111.1,3110.3,1.06838951]
[1641871440523,2.73356406,3111.1,3110.3,2.06838951]
[1641871440923,3.9776,3111.2,3110.3,2.06838951]
[1641871441123,3.9776,3111.2,3110.3,1.06838951]
[1641871441322,3.9776,3111.2,3110.3,5.02001338]
[1641871441522,3.9776,3111.2,3110.4,2.1034466]
[1641871441722,2.73347851,3111.1,3110.4,2.1034466]
[1641871441923,2.73347851,3111.1,3110.5,0.00625266]
[1641871442325,3.9776,3111.2,3110.5,0.00625266]
[1641871443575,2.73349917,3111.1,3110.5,0.00625266]
[1641871444576,2.73349917,3111.1,3110.6,0.461]
[1641871444778,3.9776,3111.2,3110.6,0.461]
[1641871444977,3.9776,3111.2,3110.7,4.18537042]
[1641871445378,3.9776,3111.2,3110.8,1.46554739]
[1641871445579,8.2119,3111.3,3110.8,1.46554739]
[1641871445791,5.7,3110.9,3109.7,0.01290819]
[1641871445990,0.01249153,3109.8,3108.4,6.75965606]
[1641871446182,0.01220545,3109.2,3108.4,6.75965606]
[1641871446446,0.01234537,3109.6,3108.4,6.75965606]
[1641871446636,0.01234537,3109.6,3108.5,0.01364216]
[1641871446837,1.23837775,3109.5,3108.5,0.01364216]
[1641871447038,0.80439,3109.2,3108.5,0.01364216]
[1641871447337,0.01222474,3109.0,3108.1,0.01591585]
[1641871447539,0.91690433,3109.1,3108.1,0.01591585]
[1641871447938,0.3,3108.9,3108.1,0.01591585]
[1641871448338,0.08042,3109.1,3108.1,0.01591585]
[1641871448542,0.08042,3109.2,3108.1,0.01591585]
[1641871448736,5.1588,3109.3,3108.1,0.01591585]
[1641871449838,5.1588,3109.3,3108.2,1.44550075]
[1641871450039,4.8588,3109.3,3108.2,1.74550075]
[1641871450302,4.8588,3109.3,3108.3,0.01477901]
[1641871452499,4.8588,3109.3,3108.3,1.01477901]
[1641871452701,4.8588,3109.3,3108.3,0.01477901]
[1641871452899,4.8588,3109.3,3108.4,0.01421058]
[1641871453103,4.8588,3109.3,3108.3,1.01477901]
[1641871453299,4.8588,3109.3,3108.4,0.01421058]
[1641871456132,4.8588,3109.3,3108.4,5.96986962]
[1641871456334,7.3013,3109.4,3108.6,0.80407]
[1641871456532,7.3013,3109.4,3108.7,5.5012033]
[1641871456729,7.3013,3109.4,3108.7,5.81370861]
[1641871456929,7.3013,3109.4,3108.8,1.01193689]
[1641871457130,7.3013,3109.4,3109.1,1.12924568]
[1641871457331,7.3013,3109.4,3109.2,4.52493566]
[1641871457530,7.3013,3109.4,3109.3,4.37665276]
[1641871457811,7.3013,3109.4,3109.3,5.14674753]
[1641871458011,10.5977,3110.1,3109.3,6.14674753]
[1641871458413,10.5977,3110.1,3109.7,1.1521659]
[1641871458611,6.7893,3110.1,3109.7,1.4521659]
[1641871458812,6.7893,3110.1,3109.8,0.00625266]
[1641871459016,6.7893,3110.1,3109.8,3.84107644]
[1641871459211,6.7893,3110.1,3109.8,0.00625266]
[1641871459412,6.7893,3110.1,3109.9,1.00568423]
[1641871459613,6.7893,3110.1,3109.9,0.3]
[1641871459811,6.7893,3110.1,3110.0,0.00511581]
[1641871460713,6.7893,3110.1,3110.0,3.91479775]
[1641871460914,3.7457,3110.7,3110.0,4.45616775]
[1641871461112,7.3223,3110.6,3110.0,4.45616775]
[1641871461312,7.3223,3110.6,3110.1,1.00454739]
[1641871461538,7.3223,3110.6,3110.2,4.71297616]
[1641871461841,6.99181347,3110.6,3110.5,3.60357]
[1641871462035,0.00170527,3111.2,3110.6,0.00434458]
[1641871462036,6.6636,3111.0,3110.6,0.00434458]
[1641871462234,0.00170527,3111.2,3110.5,18.66128404]
[1641871462235,0.00170527,3111.2,3110.7,0.54135]
[1641871462437,0.00113685,3111.1,3110.8,4.96792323]
[1641871462632,7.7164,3112.0,3110.8,4.96792323]
[1641871462633,7.7164,3112.0,3111.0,4.65]
[1641871462834,3.8736,3112.0,3111.5,0.80332]
[1641871463033,0.00454739,3111.9,3111.5,0.80332]
[1641871463234,0.00454739,3111.9,3111.5,1.10332]
[1641871463435,0.00397896,3111.8,3111.5,5.02332101]
[1641871463635,0.00397896,3111.8,3111.6,1.0]
[1641871463835,0.00341054,3111.7,3111.6,1.3]
[1641871464039,0.00341054,3111.7,3111.6,0.3]
[1641871464237,0.00341054,3111.7,3111.5,2.10332]
[1641871464436,0.00341054,3111.7,3111.5,0.3]
[1641871464636,0.00284212,3111.6,3111.4,0.761]
[1641871465176,0.00227369,3111.5,3111.4,0.761]
[1641871468481,0.00227369,3111.5,3111.4,0.461]
[1641871470049,0.00227369,3111.5,3111.4,0.761]
[1641871474989,0.00227369,3111.5,3111.4,0.461]
[1641871475790,2.95227369,3111.5,3111.4,0.461]
[1641871476933,0.00227369,3111.5,3111.4,0.461]
[1641871477134,0.00227369,3111.5,3111.4,0.761]
[1641871479736,0.00227369,3111.5,3111.4,0.3]
[1641871479933,0.00227369,3111.5,3111.0,0.761]
[1641871480380,0.00170527,3111.4,3111.0,0.761]
[1641871480780,0.00113685,3111.3,3111.0,0.761]
[1641871481182,0.00511581,3112.0,3111.0,0.761]
[1641871481481,2.73861362,3112.0,3111.0,0.761]
[1641871481682,0.00511581,3112.0,3111.0,0.761]
[1641871482880,0.00511581,3112.0,3111.1,3.93676718]
[1641871483083,0.00511581,3112.0,3111.2,1.461]
[1641871483283,0.00511581,3112.0,3111.3,4.44794153]
[1641871483483,0.00511581,3112.0,3111.4,0.461]
[1641871483683,0.00511581,3112.0,3111.4,1.461]
[1641871483950,0.00511581,3112.0,3111.4,3.63563252]
[1641871484942,0.00511581,3112.0,3111.5,3.86018018]
[1641871485138,0.00511581,3112.0,3111.6,1.461]
[1641871485338,0.00511581,3112.0,3111.6,0.461]
[1641871485538,0.00511581,3112.0,3111.6,0.761]
[1641871490781,0.00511581,3112.0,3111.6,0.461]
[1641871491831,0.00511581,3112.0,3111.6,0.761]
[1641871492031,0.00511581,3112.0,3111.6,0.461]
[1641871492231,0.00511581,3112.0,3111.6,0.761]
[1641871495178,1.43251581,3112.2,3111.6,0.761]
[1641871495383,1.43251581,3112.2,3111.7,0.00170527]
[1641871496080,1.43251581,3112.2,3111.4,0.00341054]
[1641871497384,2.73329668,3112.1,3111.4,0.00341054]
[1641871501839,6.79899668,3112.1,3111.4,0.00341054]
[1641871502038,6.79899668,3112.1,3111.1,0.00511581]
[1641871502885,6.79899668,3112.1,3111.2,0.04552711]
[1641871503085,2.73329668,3112.0,3111.3,0.80336]
[1641871503286,2.73329668,3112.0,3111.3,0.80733896]
[1641871503485,2.73329668,3112.0,3111.4,0.00341054]
[1641871504885,2.73329668,3112.1,3111.4,0.00341054]
[1641871506086,2.73329668,3112.1,3111.4,0.04893765]
[1641871506435,2.73329668,3112.1,3111.5,0.00284212]
[1641871506843,2.73329668,3112.1,3111.6,1.26428]
[1641871507040,2.73329668,3112.1,3111.6,1.56428]
[1641871507244,2.73329668,3112.1,3111.7,0.00443258]
[1641871507539,2.73329668,3112.1,3111.8,0.76213685]
[1641871507740,12.27096568,3112.6,3112.1,1.16179787]
[1641871507938,12.27096568,3112.6,3112.2,0.461]
[1641871508139,2.73564918,3112.5,3112.2,0.461]
[1641871508543,0.00227369,3112.4,3112.2,0.461]
[1641871508940,0.00170527,3112.3,3112.2,1.26407]
[1641871509941,0.00170527,3112.3,3112.2,2.50943046]
[1641871510184,0.00170527,3112.3,3112.2,3.50943046]
[1641871515633,0.00170527,3112.3,3112.2,14.43232318]
[1641871515833,0.00170527,3112.3,3112.2,10.01123046]
[1641871517335,3.8484,3113.2,3112.3,4.9]
[1641871517537,5.67596568,3113.6,3112.7,0.80297]
[1641871517538,7.1999,3113.4,3112.7,0.80297]
[1641871517784,4.09994503,3113.3,3112.8,4.59327544]
[1641871517988,4.09994503,3113.3,3112.9,5.22751079]
[1641871518187,0.00511581,3113.2,3113.0,0.461]
[1641871518483,0.00454739,3113.1,3113.0,0.461]
[1641871518686,0.00454739,3113.1,3113.0,1.26391]
[1641871519384,0.00454739,3113.1,3113.0,5.0748196]
[1641871519584,0.00454739,3113.1,3113.0,6.0748196]
[1641871520486,0.00454739,3113.1,3113.0,6.3748196]
[1641871520688,7.1999,3113.4,3113.1,3.9]
[1641871520886,7.1999,3113.4,3113.2,4.79440981]
[1641871521088,7.1999,3113.4,3113.3,3.99156252]
[1641871521288,7.1999,3113.4,3113.3,5.75000624]
[1641871521535,7.20160527,3113.4,3113.3,2.75844372]
[1641871521936,7.20160527,3113.4,3113.3,1.75844372]
[1641871522937,7.20160527,3113.4,3113.3,0.461]
[1641871528282,9.93393357,3113.4,3113.3,0.461]
[1641871528682,7.20160527,3113.4,3113.3,0.461]
[1641871529133,9.93396953,3113.4,3113.3,0.461]
[1641871529941,9.93396953,3113.4,3112.9,0.2768]
[1641871530237,0.00113685,3113.3,3112.9,0.2768]
[1641871531440,2.73350111,3113.3,3113.0,0.461]
[1641871531638,2.73350111,3113.3,3113.1,0.461]
[1641871531836,2.73350111,3113.3,3113.2,2.58029]
[1641871532038,2.73350111,3113.3,3113.2,4.261]
[1641871532692,2.73350111,3113.3,3113.2,1.761]
[1641871532885,0.00113685,3113.3,3113.2,1.761]
[1641871533087,0.00113685,3113.3,3113.2,0.761]
[1641871534088,0.00113685,3113.3,3113.2,8.02549781]
[1641871534489,0.00113685,3113.3,3113.2,9.02549781]
[1641871535190,0.00113685,3113.3,3113.2,0.461]
[1641871535990,0.00113685,3113.3,3113.2,5.17675246]
[1641871536432,0.00113685,3113.3,3113.2,5.47675246]
[1641871536635,0.00113685,3113.3,3113.2,6.47675246]
[1641871536833,0.00113685,3113.3,3113.2,2.5638]
[1641871537233,0.00113685,3113.3,3113.2,1.761]
[1641871537834,0.00113685,3113.3,3113.2,0.761]
[1641871539739,0.00113685,3113.3,3113.2,4.5334932]
[1641871539943,0.00113685,3113.3,3113.2,0.761]
[1641871540189,0.00113685,3113.3,3113.2,5.52878896]
[1641871540385,0.00113685,3113.3,3113.2,0.761]
[1641871540586,0.00113685,3113.3,3113.2,1.761]
[1641871540783,0.00113685,3113.3,3113.2,0.761]
[1641871540985,0.00113685,3113.3,3113.2,1.761]
[1641871541387,0.00113685,3113.3,3113.2,5.74767005]
[1641871542188,0.00113685,3113.3,3113.2,6.55047005]
[1641871546034,7.1999,3113.4,3113.3,5.5]
[1641871546234,3.9598,3114.1,3113.7,0.80261]
[1641871546438,6.6749,3114.1,3113.8,4.29571485]
[1641871546634,0.00397896,3114.0,3113.9,1.0]
[1641871546834,0.00397896,3114.0,3113.9,1.461]
[1641871547035,0.00397896,3114.0,3113.9,0.461]
[1641871547437,2.73599072,3114.0,3113.9,0.461]
[1641871547716,2.73599072,3114.0,3113.9,1.81310822]
[1641871548099,2.73599072,3114.0,3113.9,1.461]
[1641871548503,2.73599072,3114.0,3113.9,0.461]
[1641871548504,0.00397896,3114.0,3113.9,0.461]
[1641871548900,3.80397896,3114.0,3113.9,0.461]
[1641871549500,6.5361721,3114.0,3113.9,0.461]
[1641871550101,6.5361721,3114.0,3113.9,0.761]
[1641871550903,6.5361721,3114.0,3113.9,0.461]
[1641871551535,6.5361721,3114.0,3113.9,0.761]
[1641871551939,6.5361721,3114.0,3113.1,1.09]
[1641871551940,8.6164521,3114.0,3113.1,0.09]
[1641871552140,0.01253944,3113.7,3113.1,0.09]
[1641871552339,0.10138319,3113.6,3113.1,0.0001]
[1641871552538,0.01482355,3113.5,3113.1,0.0001]
[1641871552738,0.08029,3113.4,3113.1,0.0001]
[1641871552938,0.00113684,3113.5,3113.1,0.0001]
[1641871552939,1.59014493,3113.5,3113.1,0.0001]
[1641871553145,7.142,3113.4,3113.1,0.0001]
[1641871554343,7.142,3113.4,3113.2,1.15452105]
[1641871554541,7.142,3113.4,3113.2,1.75452105]
[1641871554740,2.73219314,3113.3,3113.2,1.75452105]
[1641871555488,7.142,3113.4,3113.2,2.21552105]
[1641871555692,7.142,3113.4,3113.3,0.08029]
[1641871555986,7.142,3113.4,3113.3,0.84129]
[1641871556387,7.142,3113.4,3113.3,1.061]
[1641871557389,0.71937,3113.4,3113.3,4.911]
[1641871557790,0.71937,3113.4,3113.3,2.061]
[1641871557991,3.935,3113.8,3113.3,2.061]
[1641871558193,5.1144,3113.9,3113.5,0.8028]
[1641871558392,0.00113685,3113.7,3113.6,0.3]
[1641871558788,0.0022737,3113.9,3113.6,0.3]
[1641871559033,2.73204385,3113.8,3113.6,0.3]
[1641871559233,2.73374912,3113.8,3113.6,0.3]
[1641871559734,0.00170527,3113.8,3113.6,0.3]
[1641871562702,2.7320474,3114.2,3113.7,5.261]
[1641871562894,2.7320474,3114.2,3113.9,0.80267]
[1641871563092,0.00170527,3114.1,3114.0,0.461]
[1641871564695,2.40170527,3114.1,3114.0,0.461]
[1641871566743,5.13375267,3114.1,3114.0,0.461]
[1641871570384,2.73375267,3114.1,3114.0,0.461]
[1641871571289,0.00170527,3114.1,3114.0,0.461]
[1641871573584,2.75170527,3114.1,3114.0,0.461]
[1641871574841,5.48375267,3114.1,3114.0,0.461]
[1641871577045,5.48375267,3114.1,3113.9,0.6]
[1641871577243,5.48375267,3114.1,3113.7,0.3]
[1641871577444,0.00113685,3114.0,3113.7,0.3]
[1641871577690,2.73318425,3114.0,3113.6,0.761]
[1641871577887,2.73318425,3114.0,3113.7,0.3]
[1641871578786,1.51960542,3113.9,3113.7,0.3]
[1641871580389,0.00113685,3114.0,3113.7,0.3]
[1641871580790,2.73197641,3113.8,3113.7,0.3]
[1641871581436,0.00113685,3114.0,3113.7,0.3]
[1641871582040,2.73311326,3114.0,3113.7,0.3]
[1641871583939,1.55814414,3114.0,3113.7,0.3]
[1641871584538,1.55814414,3114.0,3113.8,0.461]
[1641871584539,2.73197641,3113.9,3113.8,0.461]
[1641871585190,0.00113685,3114.0,3113.8,0.761]
[1641871585385,0.00113685,3114.0,3113.8,0.461]
[1641871585787,0.00113685,3114.0,3113.8,0.761]
[1641871585991,0.00113685,3114.0,3113.8,1.061]
[1641871587686,0.00113685,3114.0,3113.8,0.761]
[1641871587886,0.00113685,3114.0,3113.8,1.061]
[1641871588485,0.00113685,3114.0,3113.8,0.461]
[1641871588935,0.00113685,3114.0,3113.8,0.761]
[1641871589133,0.00113685,3114.0,3113.8,0.461]
[1641871589340,0.00113685,3114.0,3113.8,0.761]
[1641871590033,0.00113685,3114.0,3113.8,0.461]
[1641871590833,0.00113685,3114.0,3113.8,0.761]
[1641871595788,0.00113685,3114.0,3113.8,1.061]
[1641871605744,0.00113685,3114.0,3113.8,0.461]
[1641871606346,0.00113685,3114.0,3113.7,0.03]
[1641871606347,0.04586775,3113.9,3113.7,0.03]
[1641871606944,0.00113685,3114.0,3113.7,0.03]
[1641871607143,1.28351476,3113.8,3113.7,0.03]
[1641871607554,4.01549117,3113.8,3113.7,0.03]
[1641871615289,2.73197641,3113.8,3113.7,0.03]
[1641871616085,2.73197641,3114.1,3113.7,0.03]
[1641871616491,2.73368168,3114.1,3113.7,0.03]
[1641871616688,1.27185079,3114.0,3113.7,0.03]
[1641871617792,2.73197641,3113.9,3113.7,0.03]
[1641871621139,1.27037985,3114.0,3113.7,0.03]
[1641871621740,2.73197641,3113.9,3113.7,0.03]
[1641871622789,2.73368168,3114.1,3113.7,0.03]
[1641871623389,1.26846784,3114.0,3113.7,0.03]
[1641871623790,2.73368168,3114.1,3113.7,0.03]
[1641871631392,4.14095847,3114.0,3113.7,0.03]
[1641871631890,2.73368168,3114.1,3113.7,0.03]
[1641871632292,2.73197641,3113.9,3113.7,0.03]
[1641871632692,2.73197641,3114.0,3113.7,0.03]
[1641871633391,2.81396168,3114.1,3113.7,0.03]
[1641871634048,2.73197641,3114.0,3113.7,0.03]
[1641871635448,2.73368168,3114.1,3113.7,0.03]
[1641871640003,0.00170527,3114.1,3113.7,0.03]
[1641871640695,2.73368168,3114.1,3113.7,0.03]
[1641871641102,4.11960921,3114.0,3113.7,0.03]
[1641871641439,2.73368168,3114.1,3113.7,0.03]
[1641871641841,2.73197641,3113.9,3113.7,0.03]
[1641871642442,2.73368168,3114.1,3113.7,0.03]
[1641871644344,0.00170527,3114.1,3113.7,0.03]
[1641871645206,7.19753816,3114.1,3113.7,0.03]
[1641871645396,0.08028,3114.0,3113.7,0.03]
[1641871645895,2.81225641,3114.0,3113.7,0.03]
[1641871646294,4.2323,3113.9,3113.7,0.03]
[1641871646496,0.08028,3113.8,3113.7,0.03]
[1641871646694,1.24978,3113.8,3113.7,0.03]
[1641871647294,3.98175641,3113.8,3113.7,0.03]
[1641871647693,3.90147641,3113.8,3113.7,0.03]
[1641871648697,3.90147641,3113.8,3113.7,0.0001]
[1641871656948,7.95625585,3113.8,3113.7,0.0001]
[1641871657350,3.90147641,3113.8,3113.7,0.0001]
[1641871657947,8.09972618,3113.8,3113.7,0.0001]
[1641871658148,3.98175641,3113.8,3113.7,0.0001]
[1641871659151,8.06045344,3113.8,3113.7,0.0001]
[1641871660207,3.90147641,3113.8,3113.7,0.0001]
[1641871660802,7.99259135,3113.8,3113.7,0.0001]
[1641871662301,3.90147641,3113.8,3113.7,0.0001]
[1641871662504,8.13989017,3113.8,3113.7,0.0001]
[1641871662902,3.90147641,3113.8,3113.7,0.0001]
[1641871663203,6.29127641,3113.8,3113.7,0.0001]
[1641871663403,14.26880181,3113.8,3113.7,0.0001]
[1641871663602,10.23347641,3113.8,3113.7,0.0001]
[1641871663804,14.26880181,3113.8,3113.7,0.0001]
[1641871664048,19.73780181,3113.8,3113.1,0.0001]
[1641871664251,0.8034592,3113.5,3113.1,0.0001]
[1641871664447,5.7873,3113.4,3113.2,0.00341054]
[1641871664648,6.8803,3113.3,3113.2,0.00341054]
[1641871665048,12.02768503,3113.3,3113.2,0.00341054]
[1641871665251,16.93080919,3113.3,3113.2,0.00341054]
[1641871665948,19.6627856,3113.3,3113.2,0.00341054]
[1641871666949,23.76099321,3113.3,3113.2,0.00341054]
[1641871667549,5.8,3113.2,3111.5,1.06205912]
[1641871667794,5.76535945,3113.1,3111.5,1.06205912]
[1641871667995,7.06535945,3113.1,3111.6,0.00909477]
[1641871668996,1.21164911,3112.5,3111.6,0.00909477]
[1641871669996,2.73197641,3112.4,3111.6,0.00909477]
[1641871670596,1.21164911,3112.5,3111.6,0.00909477]
[1641871675895,2.73299058,3112.4,3111.6,0.00909477]
[1641871676094,0.02390167,3112.3,3111.6,0.00909477]
[1641871677298,1.21164911,3112.5,3111.6,0.00909477]
[1641871681552,0.01242227,3112.4,3111.6,0.00909477]
[1641871681850,0.09274227,3112.4,3111.6,0.00909477]
[1641871682801,0.08032,3112.4,3111.6,0.00909477]
[1641871683802,0.01760274,3112.2,3111.6,0.00909477]
[1641871684203,2.73313447,3112.3,3111.6,0.00909477]
[1641871684903,2.73313447,3112.3,3111.6,0.81246477]
[1641871685107,2.73313447,3112.3,3111.6,1.11246477]
[1641871685404,2.73313447,3112.3,3111.7,1.74900065]
[1641871685602,2.73313447,3112.3,3111.7,2.06952635]
[1641871685902,2.73313447,3112.3,3111.8,0.00795793]
[1641871686102,2.73313447,3112.8,3111.9,2.06742]
[1641871686307,5.65453882,3113.2,3111.9,2.36742]
[1641871686546,5.65453882,3113.2,3112.0,0.30682108]
[1641871686949,5.65453882,3113.2,3112.1,0.00625266]
[1641871687447,5.65453882,3113.2,3112.3,1.98746482]
[1641871687651,2.73247709,3113.1,3112.3,2.58746482]
[1641871687850,2.73247709,3113.1,3112.4,0.00454739]
[1641871688047,2.73247709,3113.1,3112.4,1.00454739]
[1641871688249,2.73247709,3113.1,3112.4,0.00454739]
[1641871688450,2.73247709,3113.1,3112.5,0.00397896]
[1641871688651,2.73247709,3113.1,3112.4,1.00454739]
[1641871688854,2.73247709,3113.1,3112.5,0.00397896]
[1641871689852,2.73247709,3113.1,3112.4,0.00454739]
[1641871690915,2.73247709,3113.1,3112.4,0.46554739]
[1641871691102,2.73247709,3113.1,3112.7,0.80309]
[1641871691301,2.73247709,3113.1,3112.7,1.10309]
[1641871691498,2.73247709,3113.1,3112.8,0.00227369]
[1641871694951,2.73247709,3113.1,3112.7,0.30284212]
[1641871695351,2.73247709,3113.1,3112.8,0.00227369]
[1641871695953,2.73247709,3113.1,3112.7,0.30284212]
[1641871696153,2.73247709,3113.1,3112.8,0.00227369]
[1641871697355,2.73247709,3113.1,3112.9,0.461]
[1641871697555,2.73247709,3113.1,3113.0,4.42511667]
[1641871697802,3.8067,3113.8,3113.0,4.42511667]
[1641871697803,2.73247709,3113.5,3113.0,6.14703291]
[1641871698001,2.73247709,3113.5,3113.0,7.44703291]
[1641871698209,0.0022737,3113.6,3113.1,1.0]
[1641871698402,0.0022737,3113.6,3113.2,4.4358439]
[1641871698601,0.00170527,3113.5,3113.3,1.3]
[1641871698803,0.00170527,3113.5,3113.3,1.6]
[1641871699001,0.00113685,3113.4,3113.3,1.6]
[1641871699402,0.00113685,3113.4,3113.3,0.6]
[1641871699602,0.00113685,3113.4,3113.3,1.6]
[1641871700006,0.00113685,3113.4,3113.3,0.6]
[1641871700201,0.00113685,3113.4,3113.3,1.6]
[1641871701002,0.00113685,3113.4,3113.3,0.6]
[1641871701201,0.00113685,3113.4,3113.3,1.6]
[1641871701454,0.00113685,3113.4,3113.3,0.6]
[1641871701654,0.00113685,3113.4,3113.3,1.6]
[1641871701854,0.00113685,3113.4,3113.3,0.6]
[1641871702054,0.00113685,3113.4,3113.3,1.6]
[1641871702254,0.00113685,3113.4,3113.3,0.6]
[1641871702454,0.00113685,3113.4,3113.3,1.6]
[1641871702656,0.00113685,3113.4,3113.3,0.6]
[1641871703056,0.00113685,3113.4,3113.3,4.38089582]
[1641871703257,0.00113685,3113.4,3113.3,0.6]
[1641871703559,0.00113685,3113.4,3113.3,1.6]
[1641871703759,0.00113685,3113.4,3113.3,0.6]
[1641871703962,0.00113685,3113.4,3113.3,1.6]
[1641871704960,0.00113685,3113.4,3113.3,0.6]
[1641871705205,0.00113685,3113.4,3113.3,1.6]
[1641871705397,0.00113685,3113.4,3113.3,0.6]
[1641871706101,0.00113685,3113.4,3113.3,1.6]
[1641871706298,0.00113685,3113.4,3113.3,5.41919475]
[1641871706499,0.00113685,3113.4,3113.3,1.061]
[1641871706698,0.00113685,3113.4,3113.3,2.061]
[1641871707498,0.00113685,3113.4,3113.3,1.061]
[1641871707698,0.00113685,3113.4,3113.3,2.061]
[1641871707899,0.00113685,3113.4,3113.3,1.061]
[1641871708602,0.00113685,3113.4,3113.3,2.061]
[1641871709454,0.00113685,3113.4,3113.3,1.061]
[1641871711056,0.00113685,3113.4,3113.3,2.061]
[1641871711458,0.00113685,3113.4,3113.3,1.061]
[1641871711655,0.00113685,3113.4,3113.3,2.061]
[1641871711855,0.00113685,3113.4,3113.3,1.061]
[1641871712057,0.00113685,3113.4,3113.3,2.061]
[1641871712254,0.00113685,3113.4,3113.3,1.061]
[1641871712707,0.00113685,3113.4,3113.3,2.061]
[1641871713497,0.00113685,3113.4,3113.3,1.061]
[1641871713697,0.00113685,3113.4,3113.3,2.061]
[1641871714500,0.00113685,3113.4,3113.3,4.8862361]
[1641871714700,0.00113685,3113.4,3113.3,5.8862361]
[1641871714999,0.00113685,3113.4,3113.3,2.061]
[1641871715199,0.00113685,3113.4,3113.3,1.061]
[1641871715999,0.00113685,3113.4,3113.3,4.8818813]
[1641871716200,0.00113685,3113.4,3113.3,2.061]
[1641871716846,0.00113685,3113.4,3113.3,6.01553603]
[1641871717048,0.00113685,3113.4,3113.3,2.061]
[1641871717447,0.00113685,3113.4,3113.3,1.061]
[1641871717646,0.00113685,3113.4,3113.3,2.061]
[1641871717847,0.00113685,3113.4,3113.3,1.061]
[1641871718048,0.00113685,3113.4,3113.3,2.061]
[1641871718246,0.00113685,3113.4,3113.3,1.061]
[1641871718450,0.00113685,3113.4,3113.3,2.061]
[1641871718646,0.00113685,3113.4,3113.3,1.061]
[1641871718848,0.00113685,3113.4,3113.3,2.061]
[1641871719051,0.00113685,3113.4,3113.3,1.061]
[1641871719451,0.00113685,3113.4,3113.3,2.061]
[1641871719651,0.00113685,3113.4,3113.3,5.8723635]
[1641871720903,0.00113685,3113.4,3113.3,2.061]
[1641871721106,0.00113685,3113.4,3113.3,1.061]
[1641871721906,3.30113685,3113.4,3113.3,0.461]
[1641871723208,3.30113685,3113.4,3113.3,0.761]
[1641871723409,0.00113685,3113.4,3113.3,0.761]
[1641871724048,2.30113685,3113.4,3113.3,0.761]
[1641871726552,0.00113685,3113.4,3113.3,0.761]
[1641871729405,2.73200801,3114.0,3113.3,0.761]